{"text_format":"1","workbook":"xlsx","n_sheets":4,"sheets":["使い方","ミニ6穴サイズ","バイブルサイズ","A5サイズ"],"not_rendered":{"charts":0,"images":8,"macros":0,"external_links":0,"defined_names":3,"comments":0,"pivot_tables":0},"unopened":[],"bounds":{"document_bytes":16777216,"sheet_cells":100000,"rows_first":2000,"rows_last":500,"rows_between":2000,"halvings":0,"cell_chars":16384,"cell_head_chars":4096},"cells_cut":0,"cells_raw":0,"read":"whole","date_system":"1900"}

{"sheet":"使い方","index":0,"n_rows":48,"n_cols":2,"rows_kept":48,"cut":false,"hidden":false,"merged":[[0,1,0,11]]}
[null,"このテンプレートの使い方"]
[]
[null,"■ミニ六穴サイズシートの使い方"]
[]
[]
[]
[]
[]
[]
[]
[]
[]
[]
[]
[]
[]
[]
[]
[]
[]
[]
[]
[]
[]
[]
[]
[]
[]
[]
[]
[]
[]
[]
[]
[]
[]
[]
[]
[]
[]
[]
[]
[]
[]
[]
[]
[]
[null,"■バイブルサイズ、A5サイズシートの使い方"]

{"sheet":"ミニ6穴サイズ","index":1,"n_rows":107,"n_cols":25,"rows_kept":107,"cut":false,"hidden":false,"merged":[[24,9,26,13],[23,2,26,6],[1,4,2,12],[3,1,3,2],[5,3,5,6],[5,10,5,13],[7,2,7,3],[7,4,7,5],[7,9,7,10],[7,11,7,12]]}
[]
[null,"西暦",2018,null,"適合手帳用紙サイズ：縦約126mm×横80mm"]
[null,"月",10]
[null,{"$f":"DATE(C2,C3,1)","v":"2018-10-01"}]
[null,null,null,null,null,null,null,null,null,null,null,null,null,null,null,null,null,null,null,null,null,null,null,null,"祝日設定"]
[null,null,{"$f":"$B$4","v":"2018-10-01"},null,null,null,null,null,null,{"$f":"$B$4","v":"2018-10-01"},null,null,null,null,null,null,null,null,null,null,null,null,null,null,"2011-01-01"]
[null,null,null,null,null,null,null,null,null,null,null,null,null,null,null,null,null,null,null,null,null,null,null,null,"2011-01-10"]
[null,null,"予定",null,"日付",null,"タスク",null,null,"予定",null,"日付",null,"タスク",null,null,null,null,null,null,null,null,null,null,"2011-02-11"]
[null,null,null,null,{"$f":"$B$4","v":"2018-10-01"},"月",null,null,null,null,null,{"$f":"$E$23+1","v":"2018-10-16"},"火",null,null,null,null,null,null,null,null,null,null,null,"2011-03-21"]
[null,null,null,null,{"$f":"IF(ISERROR(IF(MONTH($B$4)=MONTH(E9+1),E9+1,\"\")),\"\",IF(MONTH($B$4)=MONTH(E9+1),E9+1,\"\"))","v":"2018-10-02"},"火",null,null,null,null,null,{"$f":"IF(ISERROR(IF(MONTH($B$4)=MONTH(L9+1),L9+1,\"\")),\"\",IF(MONTH($B$4)=MONTH(L9+1),L9+1,\"\"))","v":"2018-10-17"},"水",null,null,null,null,null,null,null,null,null,null,null,"2011-04-29"]
[null,null,null,null,{"$f":"IF(ISERROR(IF(MONTH($B$4)=MONTH(E10+1),E10+1,\"\")),\"\",IF(MONTH($B$4)=MONTH(E10+1),E10+1,\"\"))","v":"2018-10-03"},"水",null,null,null,null,null,{"$f":"IF(ISERROR(IF(MONTH($B$4)=MONTH(L10+1),L10+1,\"\")),\"\",IF(MONTH($B$4)=MONTH(L10+1),L10+1,\"\"))","v":"2018-10-18"},"木",null,null,null,null,null,null,null,null,null,null,null,"2011-05-03"]
[null,null,null,null,"2018-10-04","木",null,null,null,null,null,"2018-10-19","金",null,null,null,null,null,null,null,null,null,null,null,"2011-05-04"]
[null,null,null,null,"2018-10-05","金",null,null,null,null,null,"2018-10-20","土",null,null,null,null,null,null,null,null,null,null,null,"2011-05-05"]
[null,null,null,null,"2018-10-06","土",null,null,null,null,null,"2018-10-21","日",null,null,null,null,null,null,null,null,null,null,null,"2011-07-18"]
[null,null,null,null,"2018-10-07","日",null,null,null,null,null,"2018-10-22","月",null,null,null,null,null,null,null,null,null,null,null,"2011-09-19"]
[null,null,null,null,"2018-10-08","月",null,null,null,null,null,"2018-10-23","火",null,null,null,null,null,null,null,null,null,null,null,"2011-09-23"]
[null,null,null,null,"2018-10-09","火",null,null,null,null,null,"2018-10-24","水",null,null,null,null,null,null,null,null,null,null,null,"2011-10-10"]
[null,null,null,null,"2018-10-10","水",null,null,null,null,null,"2018-10-25","木",null,null,null,null,null,null,null,null,null,null,null,"2011-11-03"]
[null,null,null,null,"2018-10-11","木",null,null,null,null,null,"2018-10-26","金",null,null,null,null,null,null,null,null,null,null,null,"2011-11-23"]
[null,null,null,null,"2018-10-12","金",null,null,null,null,null,"2018-10-27","土",null,null,null,null,null,null,null,null,null,null,null,"2011-12-23"]
[null,null,null,null,"2018-10-13","土",null,null,null,null,null,"2018-10-28","日",null,null,null,null,null,null,null,null,null,null,null,"2011-12-30"]
[null,null,null,null,"2018-10-14","日",null,null,null,null,null,"2018-10-29","月",null,null,null,null,null,null,null,null,null,null,null,"2011-12-31"]
[null,null,null,null,"2018-10-15","月",null,null,null,null,null,"2018-10-30","火",null,null,null,null,null,null,null,null,null,null,null,"2012-01-01"]
[null,null,"[備考]",null,null,null,null,null,null,null,null,"2018-10-31","水",null,null,null,null,null,null,null,null,null,null,null,"2012-01-02"]
[null,null,null,null,null,null,null,null,null,"[備考]",null,null,null,null,null,null,null,null,null,null,null,null,null,null,"2012-01-09"]
[null,null,null,null,null,null,null,null,null,null,null,null,null,null,null,null,null,null,null,null,null,null,null,null,"2012-02-11"]
[null,null,null,null,null,null,null,null,null,null,null,null,null,null,null,null,null,null,null,null,null,null,null,null,"2012-03-20"]
[null,null,null,null,null,null,null,null,null,null,null,null,null,null,null,null,null,null,null,null,null,null,null,null,"2012-04-29"]
[null,null,null,null,null,null,null,null,null,null,null,null,null,null,null,null,null,null,null,null,null,null,null,null,"2012-04-30"]
[null,null,null,null,null,null,null,null,null,null,null,null,null,null,null,null,null,null,null,null,null,null,null,null,"2012-05-03"]
[null,null,null,null,null,null,null,null,null,null,null,null,null,null,null,null,null,null,null,null,null,null,null,null,"2012-05-04"]
[null,null,null,null,null,null,null,null,null,null,null,null,null,null,null,null,null,null,null,null,null,null,null,null,"2012-05-05"]
[null,null,null,null,null,null,null,null,null,null,null,null,null,null,null,null,null,null,null,null,null,null,null,null,"2012-07-16"]
[null,null,null,null,null,null,null,null,null,null,null,null,null,null,null,null,null,null,null,null,null,null,null,null,"2012-09-17"]
[null,null,null,null,null,null,null,null,null,null,null,null,null,null,null,null,null,null,null,null,null,null,null,null,"2012-09-22"]
[null,null,null,null,null,null,null,null,null,null,null,null,null,null,null,null,null,null,null,null,null,null,null,null,"2012-10-08"]
[null,null,null,null,null,null,null,null,null,null,null,null,null,null,null,null,null,null,null,null,null,null,null,null,"2012-11-03"]
[null,null,null,null,null,null,null,null,null,null,null,null,null,null,null,null,null,null,null,null,null,null,null,null,"2012-11-23"]
[null,null,null,null,null,null,null,null,null,null,null,null,null,null,null,null,null,null,null,null,null,null,null,null,"2012-12-23"]
[null,null,null,null,null,null,null,null,null,null,null,null,null,null,null,null,null,null,null,null,null,null,null,null,"2012-12-24"]
[null,null,null,null,null,null,null,null,null,null,null,null,null,null,null,null,null,null,null,null,null,null,null,null,"2013-01-01"]
[null,null,null,null,null,null,null,null,null,null,null,null,null,null,null,null,null,null,null,null,null,null,null,null,"2013-01-14"]
[null,null,null,null,null,null,null,null,null,null,null,null,null,null,null,null,null,null,null,null,null,null,null,null,"2013-02-11"]
[null,null,null,null,null,null,null,null,null,null,null,null,null,null,null,null,null,null,null,null,null,null,null,null,"2013-03-20"]
[null,null,null,null,null,null,null,null,null,null,null,null,null,null,null,null,null,null,null,null,null,null,null,null,"2013-04-29"]
[null,null,null,null,null,null,null,null,null,null,null,null,null,null,null,null,null,null,null,null,null,null,null,null,"2013-05-03"]
[null,null,null,null,null,null,null,null,null,null,null,null,null,null,null,null,null,null,null,null,null,null,null,null,"2013-05-04"]
[null,null,null,null,null,null,null,null,null,null,null,null,null,null,null,null,null,null,null,null,null,null,null,null,"2013-05-05"]
[null,null,null,null,null,null,null,null,null,null,null,null,null,null,null,null,null,null,null,null,null,null,null,null,"2013-05-06"]
[null,null,null,null,null,null,null,null,null,null,null,null,null,null,null,null,null,null,null,null,null,null,null,null,"2013-07-15"]
[null,null,null,null,null,null,null,null,null,null,null,null,null,null,null,null,null,null,null,null,null,null,null,null,"2013-09-16"]
[null,null,null,null,null,null,null,null,null,null,null,null,null,null,null,null,null,null,null,null,null,null,null,null,"2013-09-23"]
[null,null,null,null,null,null,null,null,null,null,null,null,null,null,null,null,null,null,null,null,null,null,null,null,"2013-10-14"]
[null,null,null,null,null,null,null,null,null,null,null,null,null,null,null,null,null,null,null,null,null,null,null,null,"2013-11-03"]
[null,null,null,null,null,null,null,null,null,null,null,null,null,null,null,null,null,null,null,null,null,null,null,null,"2013-11-04"]
[null,null,null,null,null,null,null,null,null,null,null,null,null,null,null,null,null,null,null,null,null,null,null,null,"2013-11-23"]
[null,null,null,null,null,null,null,null,null,null,null,null,null,null,null,null,null,null,null,null,null,null,null,null,"2013-12-23"]
[null,null,null,null,null,null,null,null,null,null,null,null,null,null,null,null,null,null,null,null,null,null,null,null,"2014-01-01"]
[null,null,null,null,null,null,null,null,null,null,null,null,null,null,null,null,null,null,null,null,null,null,null,null,"2014-01-13"]
[null,null,null,null,null,null,null,null,null,null,null,null,null,null,null,null,null,null,null,null,null,null,null,null,"2014-02-11"]
[null,null,null,null,null,null,null,null,null,null,null,null,null,null,null,null,null,null,null,null,null,null,null,null,"2014-03-21"]
[null,null,null,null,null,null,null,null,null,null,null,null,null,null,null,null,null,null,null,null,null,null,null,null,"2014-04-29"]
[null,null,null,null,null,null,null,null,null,null,null,null,null,null,null,null,null,null,null,null,null,null,null,null,"2014-05-03"]
[null,null,null,null,null,null,null,null,null,null,null,null,null,null,null,null,null,null,null,null,null,null,null,null,"2014-05-04"]
[null,null,null,null,null,null,null,null,null,null,null,null,null,null,null,null,null,null,null,null,null,null,null,null,"2014-05-05"]
[null,null,null,null,null,null,null,null,null,null,null,null,null,null,null,null,null,null,null,null,null,null,null,null,"2014-05-06"]
[null,null,null,null,null,null,null,null,null,null,null,null,null,null,null,null,null,null,null,null,null,null,null,null,"2014-07-21"]
[null,null,null,null,null,null,null,null,null,null,null,null,null,null,null,null,null,null,null,null,null,null,null,null,"2014-09-15"]
[null,null,null,null,null,null,null,null,null,null,null,null,null,null,null,null,null,null,null,null,null,null,null,null,"2014-09-23"]
[null,null,null,null,null,null,null,null,null,null,null,null,null,null,null,null,null,null,null,null,null,null,null,null,"2014-10-13"]
[null,null,null,null,null,null,null,null,null,null,null,null,null,null,null,null,null,null,null,null,null,null,null,null,"2014-11-03"]
[null,null,null,null,null,null,null,null,null,null,null,null,null,null,null,null,null,null,null,null,null,null,null,null,"2014-11-23"]
[null,null,null,null,null,null,null,null,null,null,null,null,null,null,null,null,null,null,null,null,null,null,null,null,"2014-11-24"]
[null,null,null,null,null,null,null,null,null,null,null,null,null,null,null,null,null,null,null,null,null,null,null,null,"2014-12-23"]
[null,null,null,null,null,null,null,null,null,null,null,null,null,null,null,null,null,null,null,null,null,null,null,null,"2015-01-01"]
[null,null,null,null,null,null,null,null,null,null,null,null,null,null,null,null,null,null,null,null,null,null,null,null,"2015-01-12"]
[null,null,null,null,null,null,null,null,null,null,null,null,null,null,null,null,null,null,null,null,null,null,null,null,"2015-02-11"]
[null,null,null,null,null,null,null,null,null,null,null,null,null,null,null,null,null,null,null,null,null,null,null,null,"2015-03-21"]
[null,null,null,null,null,null,null,null,null,null,null,null,null,null,null,null,null,null,null,null,null,null,null,null,"2015-04-29"]
[null,null,null,null,null,null,null,null,null,null,null,null,null,null,null,null,null,null,null,null,null,null,null,null,"2015-05-03"]
[null,null,null,null,null,null,null,null,null,null,null,null,null,null,null,null,null,null,null,null,null,null,null,null,"2015-05-04"]
[null,null,null,null,null,null,null,null,null,null,null,null,null,null,null,null,null,null,null,null,null,null,null,null,"2015-05-05"]
[null,null,null,null,null,null,null,null,null,null,null,null,null,null,null,null,null,null,null,null,null,null,null,null,"2015-05-06"]
[null,null,null,null,null,null,null,null,null,null,null,null,null,null,null,null,null,null,null,null,null,null,null,null,"2015-07-20"]
[null,null,null,null,null,null,null,null,null,null,null,null,null,null,null,null,null,null,null,null,null,null,null,null,"2015-09-21"]
[null,null,null,null,null,null,null,null,null,null,null,null,null,null,null,null,null,null,null,null,null,null,null,null,"2015-09-22"]
[null,null,null,null,null,null,null,null,null,null,null,null,null,null,null,null,null,null,null,null,null,null,null,null,"2015-09-23"]
[null,null,null,null,null,null,null,null,null,null,null,null,null,null,null,null,null,null,null,null,null,null,null,null,"2015-10-12"]
[null,null,null,null,null,null,null,null,null,null,null,null,null,null,null,null,null,null,null,null,null,null,null,null,"2015-11-03"]
[null,null,null,null,null,null,null,null,null,null,null,null,null,null,null,null,null,null,null,null,null,null,null,null,"2015-11-23"]
[null,null,null,null,null,null,null,null,null,null,null,null,null,null,null,null,null,null,null,null,null,null,null,null,"2015-12-23"]
[null,null,null,null,null,null,null,null,null,null,null,null,null,null,null,null,null,null,null,null,null,null,null,null,"2016-01-01"]
[null,null,null,null,null,null,null,null,null,null,null,null,null,null,null,null,null,null,null,null,null,null,null,null,"2016-01-11"]
[null,null,null,null,null,null,null,null,null,null,null,null,null,null,null,null,null,null,null,null,null,null,null,null,"2016-02-11"]
[null,null,null,null,null,null,null,null,null,null,null,null,null,null,null,null,null,null,null,null,null,null,null,null,"2016-03-20"]
[null,null,null,null,null,null,null,null,null,null,null,null,null,null,null,null,null,null,null,null,null,null,null,null,"2016-03-21"]
[null,null,null,null,null,null,null,null,null,null,null,null,null,null,null,null,null,null,null,null,null,null,null,null,"2016-04-29"]
[null,null,null,null,null,null,null,null,null,null,null,null,null,null,null,null,null,null,null,null,null,null,null,null,"2016-05-03"]
[null,null,null,null,null,null,null,null,null,null,null,null,null,null,null,null,null,null,null,null,null,null,null,null,"2016-05-04"]
[null,null,null,null,null,null,null,null,null,null,null,null,null,null,null,null,null,null,null,null,null,null,null,null,"2016-05-05"]
[null,null,null,null,null,null,null,null,null,null,null,null,null,null,null,null,null,null,null,null,null,null,null,null,"2016-07-18"]
[null,null,null,null,null,null,null,null,null,null,null,null,null,null,null,null,null,null,null,null,null,null,null,null,"2016-09-19"]
[null,null,null,null,null,null,null,null,null,null,null,null,null,null,null,null,null,null,null,null,null,null,null,null,"2016-09-22"]
[null,null,null,null,null,null,null,null,null,null,null,null,null,null,null,null,null,null,null,null,null,null,null,null,"2016-10-10"]
[null,null,null,null,null,null,null,null,null,null,null,null,null,null,null,null,null,null,null,null,null,null,null,null,"2016-11-03"]
[null,null,null,null,null,null,null,null,null,null,null,null,null,null,null,null,null,null,null,null,null,null,null,null,"2016-11-23"]
[null,null,null,null,null,null,null,null,null,null,null,null,null,null,null,null,null,null,null,null,null,null,null,null,"2016-12-23"]

{"sheet":"バイブルサイズ","index":2,"n_rows":107,"n_cols":25,"rows_kept":107,"cut":false,"hidden":false,"merged":[[1,4,2,9],[7,2,7,3],[7,4,7,5],[3,1,3,2],[5,3,5,6]]}
[]
[null,"西暦",2018,null,"適合手帳用紙サイズ：縦約170mm×横95mm"]
[null,"月",10]
[null,{"$f":"DATE(C2,C3,1)","v":"2018-10-01"}]
[null,null,null,null,null,null,null,null,null,null,null,null,null,null,null,null,null,null,null,null,null,null,null,null,"祝日設定"]
[null,null,{"$f":"$B$4","v":"2018-10-01"},null,null,null,null,null,null,null,null,null,null,null,null,null,null,null,null,null,null,null,null,null,"2011-01-01"]
[null,null,null,null,null,null,null,null,null,null,null,null,null,null,null,null,null,null,null,null,null,null,null,null,"2011-01-10"]
[null,null,"予定",null,"日付",null,"タスク",null,null,null,null,null,null,null,null,null,null,null,null,null,null,null,null,null,"2011-02-11"]
[null,null,null,null,{"$f":"$B$4","v":"2018-10-01"},{"$f":"TEXT(E9,\"aaa\")","v":"月"},null,null,null,null,null,null,null,null,null,null,null,null,null,null,null,null,null,null,"2011-03-21"]
[null,null,null,null,{"$f":"IF(ISERROR(IF(MONTH($B$4)=MONTH(E9+1),E9+1,\"\")),\"\",IF(MONTH($B$4)=MONTH(E9+1),E9+1,\"\"))","v":"2018-10-02"},{"$f":"TEXT(E10,\"aaa\")","v":"火"},null,null,null,null,null,null,null,null,null,null,null,null,null,null,null,null,null,null,"2011-04-29"]
[null,null,null,null,{"$f":"IF(ISERROR(IF(MONTH($B$4)=MONTH(E10+1),E10+1,\"\")),\"\",IF(MONTH($B$4)=MONTH(E10+1),E10+1,\"\"))","v":"2018-10-03"},"水",null,null,null,null,null,null,null,null,null,null,null,null,null,null,null,null,null,null,"2011-05-03"]
[null,null,null,null,"2018-10-04","木",null,null,null,null,null,null,null,null,null,null,null,null,null,null,null,null,null,null,"2011-05-04"]
[null,null,null,null,"2018-10-05","金",null,null,null,null,null,null,null,null,null,null,null,null,null,null,null,null,null,null,"2011-05-05"]
[null,null,null,null,"2018-10-06","土",null,null,null,null,null,null,null,null,null,null,null,null,null,null,null,null,null,null,"2011-07-18"]
[null,null,null,null,"2018-10-07","日",null,null,null,null,null,null,null,null,null,null,null,null,null,null,null,null,null,null,"2011-09-19"]
[null,null,null,null,"2018-10-08","月",null,null,null,null,null,null,null,null,null,null,null,null,null,null,null,null,null,null,"2011-09-23"]
[null,null,null,null,"2018-10-09","火",null,null,null,null,null,null,null,null,null,null,null,null,null,null,null,null,null,null,"2011-10-10"]
[null,null,null,null,"2018-10-10","水",null,null,null,null,null,null,null,null,null,null,null,null,null,null,null,null,null,null,"2011-11-03"]
[null,null,null,null,"2018-10-11","木",null,null,null,null,null,null,null,null,null,null,null,null,null,null,null,null,null,null,"2011-11-23"]
[null,null,null,null,"2018-10-12","金",null,null,null,null,null,null,null,null,null,null,null,null,null,null,null,null,null,null,"2011-12-23"]
[null,null,null,null,"2018-10-13","土",null,null,null,null,null,null,null,null,null,null,null,null,null,null,null,null,null,null,"2011-12-30"]
[null,null,null,null,"2018-10-14","日",null,null,null,null,null,null,null,null,null,null,null,null,null,null,null,null,null,null,"2011-12-31"]
[null,null,null,null,"2018-10-15","月",null,null,null,null,null,null,null,null,null,null,null,null,null,null,null,null,null,null,"2012-01-01"]
[null,null,null,null,"2018-10-16","火",null,null,null,null,null,null,null,null,null,null,null,null,null,null,null,null,null,null,"2012-01-02"]
[null,null,null,null,"2018-10-17","水",null,null,null,null,null,null,null,null,null,null,null,null,null,null,null,null,null,null,"2012-01-09"]
[null,null,null,null,"2018-10-18","木",null,null,null,null,null,null,null,null,null,null,null,null,null,null,null,null,null,null,"2012-02-11"]
[null,null,null,null,"2018-10-19","金",null,null,null,null,null,null,null,null,null,null,null,null,null,null,null,null,null,null,"2012-03-20"]
[null,null,null,null,"2018-10-20","土",null,null,null,null,null,null,null,null,null,null,null,null,null,null,null,null,null,null,"2012-04-29"]
[null,null,null,null,"2018-10-21","日",null,null,null,null,null,null,null,null,null,null,null,null,null,null,null,null,null,null,"2012-04-30"]
[null,null,null,null,"2018-10-22","月",null,null,null,null,null,null,null,null,null,null,null,null,null,null,null,null,null,null,"2012-05-03"]
[null,null,null,null,"2018-10-23","火",null,null,null,null,null,null,null,null,null,null,null,null,null,null,null,null,null,null,"2012-05-04"]
[null,null,null,null,"2018-10-24","水",null,null,null,null,null,null,null,null,null,null,null,null,null,null,null,null,null,null,"2012-05-05"]
[null,null,null,null,"2018-10-25","木",null,null,null,null,null,null,null,null,null,null,null,null,null,null,null,null,null,null,"2012-07-16"]
[null,null,null,null,"2018-10-26","金",null,null,null,null,null,null,null,null,null,null,null,null,null,null,null,null,null,null,"2012-09-17"]
[null,null,null,null,"2018-10-27","土",null,null,null,null,null,null,null,null,null,null,null,null,null,null,null,null,null,null,"2012-09-22"]
[null,null,null,null,"2018-10-28","日",null,null,null,null,null,null,null,null,null,null,null,null,null,null,null,null,null,null,"2012-10-08"]
[null,null,null,null,"2018-10-29","月",null,null,null,null,null,null,null,null,null,null,null,null,null,null,null,null,null,null,"2012-11-03"]
[null,null,null,null,"2018-10-30","火",null,null,null,null,null,null,null,null,null,null,null,null,null,null,null,null,null,null,"2012-11-23"]
[null,null,null,null,"2018-10-31","水",null,null,null,null,null,null,null,null,null,null,null,null,null,null,null,null,null,null,"2012-12-23"]
[null,null,null,null,null,null,null,null,null,null,null,null,null,null,null,null,null,null,null,null,null,null,null,null,"2012-12-24"]
[null,null,null,null,null,null,null,null,null,null,null,null,null,null,null,null,null,null,null,null,null,null,null,null,"2013-01-01"]
[null,null,null,null,null,null,null,null,null,null,null,null,null,null,null,null,null,null,null,null,null,null,null,null,"2013-01-14"]
[null,null,null,null,null,null,null,null,null,null,null,null,null,null,null,null,null,null,null,null,null,null,null,null,"2013-02-11"]
[null,null,null,null,null,null,null,null,null,null,null,null,null,null,null,null,null,null,null,null,null,null,null,null,"2013-03-20"]
[null,null,null,null,null,null,null,null,null,null,null,null,null,null,null,null,null,null,null,null,null,null,null,null,"2013-04-29"]
[null,null,null,null,null,null,null,null,null,null,null,null,null,null,null,null,null,null,null,null,null,null,null,null,"2013-05-03"]
[null,null,null,null,null,null,null,null,null,null,null,null,null,null,null,null,null,null,null,null,null,null,null,null,"2013-05-04"]
[null,null,null,null,null,null,null,null,null,null,null,null,null,null,null,null,null,null,null,null,null,null,null,null,"2013-05-05"]
[null,null,null,null,null,null,null,null,null,null,null,null,null,null,null,null,null,null,null,null,null,null,null,null,"2013-05-06"]
[null,null,null,null,null,null,null,null,null,null,null,null,null,null,null,null,null,null,null,null,null,null,null,null,"2013-07-15"]
[null,null,null,null,null,null,null,null,null,null,null,null,null,null,null,null,null,null,null,null,null,null,null,null,"2013-09-16"]
[null,null,null,null,null,null,null,null,null,null,null,null,null,null,null,null,null,null,null,null,null,null,null,null,"2013-09-23"]
[null,null,null,null,null,null,null,null,null,null,null,null,null,null,null,null,null,null,null,null,null,null,null,null,"2013-10-14"]
[null,null,null,null,null,null,null,null,null,null,null,null,null,null,null,null,null,null,null,null,null,null,null,null,"2013-11-03"]
[null,null,null,null,null,null,null,null,null,null,null,null,null,null,null,null,null,null,null,null,null,null,null,null,"2013-11-04"]
[null,null,null,null,null,null,null,null,null,null,null,null,null,null,null,null,null,null,null,null,null,null,null,null,"2013-11-23"]
[null,null,null,null,null,null,null,null,null,null,null,null,null,null,null,null,null,null,null,null,null,null,null,null,"2013-12-23"]
[null,null,null,null,null,null,null,null,null,null,null,null,null,null,null,null,null,null,null,null,null,null,null,null,"2014-01-01"]
[null,null,null,null,null,null,null,null,null,null,null,null,null,null,null,null,null,null,null,null,null,null,null,null,"2014-01-13"]
[null,null,null,null,null,null,null,null,null,null,null,null,null,null,null,null,null,null,null,null,null,null,null,null,"2014-02-11"]
[null,null,null,null,null,null,null,null,null,null,null,null,null,null,null,null,null,null,null,null,null,null,null,null,"2014-03-21"]
[null,null,null,null,null,null,null,null,null,null,null,null,null,null,null,null,null,null,null,null,null,null,null,null,"2014-04-29"]
[null,null,null,null,null,null,null,null,null,null,null,null,null,null,null,null,null,null,null,null,null,null,null,null,"2014-05-03"]
[null,null,null,null,null,null,null,null,null,null,null,null,null,null,null,null,null,null,null,null,null,null,null,null,"2014-05-04"]
[null,null,null,null,null,null,null,null,null,null,null,null,null,null,null,null,null,null,null,null,null,null,null,null,"2014-05-05"]
[null,null,null,null,null,null,null,null,null,null,null,null,null,null,null,null,null,null,null,null,null,null,null,null,"2014-05-06"]
[null,null,null,null,null,null,null,null,null,null,null,null,null,null,null,null,null,null,null,null,null,null,null,null,"2014-07-21"]
[null,null,null,null,null,null,null,null,null,null,null,null,null,null,null,null,null,null,null,null,null,null,null,null,"2014-09-15"]
[null,null,null,null,null,null,null,null,null,null,null,null,null,null,null,null,null,null,null,null,null,null,null,null,"2014-09-23"]
[null,null,null,null,null,null,null,null,null,null,null,null,null,null,null,null,null,null,null,null,null,null,null,null,"2014-10-13"]
[null,null,null,null,null,null,null,null,null,null,null,null,null,null,null,null,null,null,null,null,null,null,null,null,"2014-11-03"]
[null,null,null,null,null,null,null,null,null,null,null,null,null,null,null,null,null,null,null,null,null,null,null,null,"2014-11-23"]
[null,null,null,null,null,null,null,null,null,null,null,null,null,null,null,null,null,null,null,null,null,null,null,null,"2014-11-24"]
[null,null,null,null,null,null,null,null,null,null,null,null,null,null,null,null,null,null,null,null,null,null,null,null,"2014-12-23"]
[null,null,null,null,null,null,null,null,null,null,null,null,null,null,null,null,null,null,null,null,null,null,null,null,"2015-01-01"]
[null,null,null,null,null,null,null,null,null,null,null,null,null,null,null,null,null,null,null,null,null,null,null,null,"2015-01-12"]
[null,null,null,null,null,null,null,null,null,null,null,null,null,null,null,null,null,null,null,null,null,null,null,null,"2015-02-11"]
[null,null,null,null,null,null,null,null,null,null,null,null,null,null,null,null,null,null,null,null,null,null,null,null,"2015-03-21"]
[null,null,null,null,null,null,null,null,null,null,null,null,null,null,null,null,null,null,null,null,null,null,null,null,"2015-04-29"]
[null,null,null,null,null,null,null,null,null,null,null,null,null,null,null,null,null,null,null,null,null,null,null,null,"2015-05-03"]
[null,null,null,null,null,null,null,null,null,null,null,null,null,null,null,null,null,null,null,null,null,null,null,null,"2015-05-04"]
[null,null,null,null,null,null,null,null,null,null,null,null,null,null,null,null,null,null,null,null,null,null,null,null,"2015-05-05"]
[null,null,null,null,null,null,null,null,null,null,null,null,null,null,null,null,null,null,null,null,null,null,null,null,"2015-05-06"]
[null,null,null,null,null,null,null,null,null,null,null,null,null,null,null,null,null,null,null,null,null,null,null,null,"2015-07-20"]
[null,null,null,null,null,null,null,null,null,null,null,null,null,null,null,null,null,null,null,null,null,null,null,null,"2015-09-21"]
[null,null,null,null,null,null,null,null,null,null,null,null,null,null,null,null,null,null,null,null,null,null,null,null,"2015-09-22"]
[null,null,null,null,null,null,null,null,null,null,null,null,null,null,null,null,null,null,null,null,null,null,null,null,"2015-09-23"]
[null,null,null,null,null,null,null,null,null,null,null,null,null,null,null,null,null,null,null,null,null,null,null,null,"2015-10-12"]
[null,null,null,null,null,null,null,null,null,null,null,null,null,null,null,null,null,null,null,null,null,null,null,null,"2015-11-03"]
[null,null,null,null,null,null,null,null,null,null,null,null,null,null,null,null,null,null,null,null,null,null,null,null,"2015-11-23"]
[null,null,null,null,null,null,null,null,null,null,null,null,null,null,null,null,null,null,null,null,null,null,null,null,"2015-12-23"]
[null,null,null,null,null,null,null,null,null,null,null,null,null,null,null,null,null,null,null,null,null,null,null,null,"2016-01-01"]
[null,null,null,null,null,null,null,null,null,null,null,null,null,null,null,null,null,null,null,null,null,null,null,null,"2016-01-11"]
[null,null,null,null,null,null,null,null,null,null,null,null,null,null,null,null,null,null,null,null,null,null,null,null,"2016-02-11"]
[null,null,null,null,null,null,null,null,null,null,null,null,null,null,null,null,null,null,null,null,null,null,null,null,"2016-03-20"]
[null,null,null,null,null,null,null,null,null,null,null,null,null,null,null,null,null,null,null,null,null,null,null,null,"2016-03-21"]
[null,null,null,null,null,null,null,null,null,null,null,null,null,null,null,null,null,null,null,null,null,null,null,null,"2016-04-29"]
[null,null,null,null,null,null,null,null,null,null,null,null,null,null,null,null,null,null,null,null,null,null,null,null,"2016-05-03"]
[null,null,null,null,null,null,null,null,null,null,null,null,null,null,null,null,null,null,null,null,null,null,null,null,"2016-05-04"]
[null,null,null,null,null,null,null,null,null,null,null,null,null,null,null,null,null,null,null,null,null,null,null,null,"2016-05-05"]
[null,null,null,null,null,null,null,null,null,null,null,null,null,null,null,null,null,null,null,null,null,null,null,null,"2016-07-18"]
[null,null,null,null,null,null,null,null,null,null,null,null,null,null,null,null,null,null,null,null,null,null,null,null,"2016-09-19"]
[null,null,null,null,null,null,null,null,null,null,null,null,null,null,null,null,null,null,null,null,null,null,null,null,"2016-09-22"]
[null,null,null,null,null,null,null,null,null,null,null,null,null,null,null,null,null,null,null,null,null,null,null,null,"2016-10-10"]
[null,null,null,null,null,null,null,null,null,null,null,null,null,null,null,null,null,null,null,null,null,null,null,null,"2016-11-03"]
[null,null,null,null,null,null,null,null,null,null,null,null,null,null,null,null,null,null,null,null,null,null,null,null,"2016-11-23"]
[null,null,null,null,null,null,null,null,null,null,null,null,null,null,null,null,null,null,null,null,null,null,null,null,"2016-12-23"]

{"sheet":"A5サイズ","index":3,"n_rows":107,"n_cols":25,"rows_kept":107,"cut":false,"hidden":false,"merged":[[39,2,41,6],[1,4,2,8],[3,1,3,2],[5,3,5,6],[7,2,7,3],[7,4,7,5]]}
[]
[null,"西暦",2018,null,"適合手帳用紙サイズ：縦約210mm×横148mm"]
[null,"月",10]
[null,{"$f":"DATE(C2,C3,1)","v":"2018-10-01"}]
[null,null,null,null,null,null,null,null,null,null,null,null,null,null,null,null,null,null,null,null,null,null,null,null,"祝日設定"]
[null,null,{"$f":"$B$4","v":"2018-10-01"},null,null,null,null,null,null,null,null,null,null,null,null,null,null,null,null,null,null,null,null,null,"2011-01-01"]
[null,null,null,null,null,null,null,null,null,null,null,null,null,null,null,null,null,null,null,null,null,null,null,null,"2011-01-10"]
[null,null,"予定",null,"日付",null,"タスク",null,null,null,null,null,null,null,null,null,null,null,null,null,null,null,null,null,"2011-02-11"]
[null,null,null,null,{"$f":"$B$4","v":"2018-10-01"},{"$f":"TEXT(E9,\"aaa\")","v":"月"},null,null,null,null,null,null,null,null,null,null,null,null,null,null,null,null,null,null,"2011-03-21"]
[null,null,null,null,{"$f":"IF(ISERROR(IF(MONTH($B$4)=MONTH(E9+1),E9+1,\"\")),\"\",IF(MONTH($B$4)=MONTH(E9+1),E9+1,\"\"))","v":"2018-10-02"},{"$f":"TEXT(E10,\"aaa\")","v":"火"},null,null,null,null,null,null,null,null,null,null,null,null,null,null,null,null,null,null,"2011-04-29"]
[null,null,null,null,{"$f":"IF(ISERROR(IF(MONTH($B$4)=MONTH(E10+1),E10+1,\"\")),\"\",IF(MONTH($B$4)=MONTH(E10+1),E10+1,\"\"))","v":"2018-10-03"},"水",null,null,null,null,null,null,null,null,null,null,null,null,null,null,null,null,null,null,"2011-05-03"]
[null,null,null,null,"2018-10-04","木",null,null,null,null,null,null,null,null,null,null,null,null,null,null,null,null,null,null,"2011-05-04"]
[null,null,null,null,"2018-10-05","金",null,null,null,null,null,null,null,null,null,null,null,null,null,null,null,null,null,null,"2011-05-05"]
[null,null,null,null,"2018-10-06","土",null,null,null,null,null,null,null,null,null,null,null,null,null,null,null,null,null,null,"2011-07-18"]
[null,null,null,null,"2018-10-07","日",null,null,null,null,null,null,null,null,null,null,null,null,null,null,null,null,null,null,"2011-09-19"]
[null,null,null,null,"2018-10-08","月",null,null,null,null,null,null,null,null,null,null,null,null,null,null,null,null,null,null,"2011-09-23"]
[null,null,null,null,"2018-10-09","火",null,null,null,null,null,null,null,null,null,null,null,null,null,null,null,null,null,null,"2011-10-10"]
[null,null,null,null,"2018-10-10","水",null,null,null,null,null,null,null,null,null,null,null,null,null,null,null,null,null,null,"2011-11-03"]
[null,null,null,null,"2018-10-11","木",null,null,null,null,null,null,null,null,null,null,null,null,null,null,null,null,null,null,"2011-11-23"]
[null,null,null,null,"2018-10-12","金",null,null,null,null,null,null,null,null,null,null,null,null,null,null,null,null,null,null,"2011-12-23"]
[null,null,null,null,"2018-10-13","土",null,null,null,null,null,null,null,null,null,null,null,null,null,null,null,null,null,null,"2011-12-30"]
[null,null,null,null,"2018-10-14","日",null,null,null,null,null,null,null,null,null,null,null,null,null,null,null,null,null,null,"2011-12-31"]
[null,null,null,null,"2018-10-15","月",null,null,null,null,null,null,null,null,null,null,null,null,null,null,null,null,null,null,"2012-01-01"]
[null,null,null,null,"2018-10-16","火",null,null,null,null,null,null,null,null,null,null,null,null,null,null,null,null,null,null,"2012-01-02"]
[null,null,null,null,"2018-10-17","水",null,null,null,null,null,null,null,null,null,null,null,null,null,null,null,null,null,null,"2012-01-09"]
[null,null,null,null,"2018-10-18","木",null,null,null,null,null,null,null,null,null,null,null,null,null,null,null,null,null,null,"2012-02-11"]
[null,null,null,null,"2018-10-19","金",null,null,null,null,null,null,null,null,null,null,null,null,null,null,null,null,null,null,"2012-03-20"]
[null,null,null,null,"2018-10-20","土",null,null,null,null,null,null,null,null,null,null,null,null,null,null,null,null,null,null,"2012-04-29"]
[null,null,null,null,"2018-10-21","日",null,null,null,null,null,null,null,null,null,null,null,null,null,null,null,null,null,null,"2012-04-30"]
[null,null,null,null,"2018-10-22","月",null,null,null,null,null,null,null,null,null,null,null,null,null,null,null,null,null,null,"2012-05-03"]
[null,null,null,null,"2018-10-23","火",null,null,null,null,null,null,null,null,null,null,null,null,null,null,null,null,null,null,"2012-05-04"]
[null,null,null,null,"2018-10-24","水",null,null,null,null,null,null,null,null,null,null,null,null,null,null,null,null,null,null,"2012-05-05"]
[null,null,null,null,"2018-10-25","木",null,null,null,null,null,null,null,null,null,null,null,null,null,null,null,null,null,null,"2012-07-16"]
[null,null,null,null,"2018-10-26","金",null,null,null,null,null,null,null,null,null,null,null,null,null,null,null,null,null,null,"2012-09-17"]
[null,null,null,null,"2018-10-27","土",null,null,null,null,null,null,null,null,null,null,null,null,null,null,null,null,null,null,"2012-09-22"]
[null,null,null,null,"2018-10-28","日",null,null,null,null,null,null,null,null,null,null,null,null,null,null,null,null,null,null,"2012-10-08"]
[null,null,null,null,"2018-10-29","月",null,null,null,null,null,null,null,null,null,null,null,null,null,null,null,null,null,null,"2012-11-03"]
[null,null,null,null,"2018-10-30","火",null,null,null,null,null,null,null,null,null,null,null,null,null,null,null,null,null,null,"2012-11-23"]
[null,null,null,null,"2018-10-31","水",null,null,null,null,null,null,null,null,null,null,null,null,null,null,null,null,null,null,"2012-12-23"]
[null,null,"[備考]",null,null,null,null,null,null,null,null,null,null,null,null,null,null,null,null,null,null,null,null,null,"2012-12-24"]
[null,null,null,null,null,null,null,null,null,null,null,null,null,null,null,null,null,null,null,null,null,null,null,null,"2013-01-01"]
[null,null,null,null,null,null,null,null,null,null,null,null,null,null,null,null,null,null,null,null,null,null,null,null,"2013-01-14"]
[null,null,null,null,null,null,null,null,null,null,null,null,null,null,null,null,null,null,null,null,null,null,null,null,"2013-02-11"]
[null,null,null,null,null,null,null,null,null,null,null,null,null,null,null,null,null,null,null,null,null,null,null,null,"2013-03-20"]
[null,null,null,null,null,null,null,null,null,null,null,null,null,null,null,null,null,null,null,null,null,null,null,null,"2013-04-29"]
[null,null,null,null,null,null,null,null,null,null,null,null,null,null,null,null,null,null,null,null,null,null,null,null,"2013-05-03"]
[null,null,null,null,null,null,null,null,null,null,null,null,null,null,null,null,null,null,null,null,null,null,null,null,"2013-05-04"]
[null,null,null,null,null,null,null,null,null,null,null,null,null,null,null,null,null,null,null,null,null,null,null,null,"2013-05-05"]
[null,null,null,null,null,null,null,null,null,null,null,null,null,null,null,null,null,null,null,null,null,null,null,null,"2013-05-06"]
[null,null,null,null,null,null,null,null,null,null,null,null,null,null,null,null,null,null,null,null,null,null,null,null,"2013-07-15"]
[null,null,null,null,null,null,null,null,null,null,null,null,null,null,null,null,null,null,null,null,null,null,null,null,"2013-09-16"]
[null,null,null,null,null,null,null,null,null,null,null,null,null,null,null,null,null,null,null,null,null,null,null,null,"2013-09-23"]
[null,null,null,null,null,null,null,null,null,null,null,null,null,null,null,null,null,null,null,null,null,null,null,null,"2013-10-14"]
[null,null,null,null,null,null,null,null,null,null,null,null,null,null,null,null,null,null,null,null,null,null,null,null,"2013-11-03"]
[null,null,null,null,null,null,null,null,null,null,null,null,null,null,null,null,null,null,null,null,null,null,null,null,"2013-11-04"]
[null,null,null,null,null,null,null,null,null,null,null,null,null,null,null,null,null,null,null,null,null,null,null,null,"2013-11-23"]
[null,null,null,null,null,null,null,null,null,null,null,null,null,null,null,null,null,null,null,null,null,null,null,null,"2013-12-23"]
[null,null,null,null,null,null,null,null,null,null,null,null,null,null,null,null,null,null,null,null,null,null,null,null,"2014-01-01"]
[null,null,null,null,null,null,null,null,null,null,null,null,null,null,null,null,null,null,null,null,null,null,null,null,"2014-01-13"]
[null,null,null,null,null,null,null,null,null,null,null,null,null,null,null,null,null,null,null,null,null,null,null,null,"2014-02-11"]
[null,null,null,null,null,null,null,null,null,null,null,null,null,null,null,null,null,null,null,null,null,null,null,null,"2014-03-21"]
[null,null,null,null,null,null,null,null,null,null,null,null,null,null,null,null,null,null,null,null,null,null,null,null,"2014-04-29"]
[null,null,null,null,null,null,null,null,null,null,null,null,null,null,null,null,null,null,null,null,null,null,null,null,"2014-05-03"]
[null,null,null,null,null,null,null,null,null,null,null,null,null,null,null,null,null,null,null,null,null,null,null,null,"2014-05-04"]
[null,null,null,null,null,null,null,null,null,null,null,null,null,null,null,null,null,null,null,null,null,null,null,null,"2014-05-05"]
[null,null,null,null,null,null,null,null,null,null,null,null,null,null,null,null,null,null,null,null,null,null,null,null,"2014-05-06"]
[null,null,null,null,null,null,null,null,null,null,null,null,null,null,null,null,null,null,null,null,null,null,null,null,"2014-07-21"]
[null,null,null,null,null,null,null,null,null,null,null,null,null,null,null,null,null,null,null,null,null,null,null,null,"2014-09-15"]
[null,null,null,null,null,null,null,null,null,null,null,null,null,null,null,null,null,null,null,null,null,null,null,null,"2014-09-23"]
[null,null,null,null,null,null,null,null,null,null,null,null,null,null,null,null,null,null,null,null,null,null,null,null,"2014-10-13"]
[null,null,null,null,null,null,null,null,null,null,null,null,null,null,null,null,null,null,null,null,null,null,null,null,"2014-11-03"]
[null,null,null,null,null,null,null,null,null,null,null,null,null,null,null,null,null,null,null,null,null,null,null,null,"2014-11-23"]
[null,null,null,null,null,null,null,null,null,null,null,null,null,null,null,null,null,null,null,null,null,null,null,null,"2014-11-24"]
[null,null,null,null,null,null,null,null,null,null,null,null,null,null,null,null,null,null,null,null,null,null,null,null,"2014-12-23"]
[null,null,null,null,null,null,null,null,null,null,null,null,null,null,null,null,null,null,null,null,null,null,null,null,"2015-01-01"]
[null,null,null,null,null,null,null,null,null,null,null,null,null,null,null,null,null,null,null,null,null,null,null,null,"2015-01-12"]
[null,null,null,null,null,null,null,null,null,null,null,null,null,null,null,null,null,null,null,null,null,null,null,null,"2015-02-11"]
[null,null,null,null,null,null,null,null,null,null,null,null,null,null,null,null,null,null,null,null,null,null,null,null,"2015-03-21"]
[null,null,null,null,null,null,null,null,null,null,null,null,null,null,null,null,null,null,null,null,null,null,null,null,"2015-04-29"]
[null,null,null,null,null,null,null,null,null,null,null,null,null,null,null,null,null,null,null,null,null,null,null,null,"2015-05-03"]
[null,null,null,null,null,null,null,null,null,null,null,null,null,null,null,null,null,null,null,null,null,null,null,null,"2015-05-04"]
[null,null,null,null,null,null,null,null,null,null,null,null,null,null,null,null,null,null,null,null,null,null,null,null,"2015-05-05"]
[null,null,null,null,null,null,null,null,null,null,null,null,null,null,null,null,null,null,null,null,null,null,null,null,"2015-05-06"]
[null,null,null,null,null,null,null,null,null,null,null,null,null,null,null,null,null,null,null,null,null,null,null,null,"2015-07-20"]
[null,null,null,null,null,null,null,null,null,null,null,null,null,null,null,null,null,null,null,null,null,null,null,null,"2015-09-21"]
[null,null,null,null,null,null,null,null,null,null,null,null,null,null,null,null,null,null,null,null,null,null,null,null,"2015-09-22"]
[null,null,null,null,null,null,null,null,null,null,null,null,null,null,null,null,null,null,null,null,null,null,null,null,"2015-09-23"]
[null,null,null,null,null,null,null,null,null,null,null,null,null,null,null,null,null,null,null,null,null,null,null,null,"2015-10-12"]
[null,null,null,null,null,null,null,null,null,null,null,null,null,null,null,null,null,null,null,null,null,null,null,null,"2015-11-03"]
[null,null,null,null,null,null,null,null,null,null,null,null,null,null,null,null,null,null,null,null,null,null,null,null,"2015-11-23"]
[null,null,null,null,null,null,null,null,null,null,null,null,null,null,null,null,null,null,null,null,null,null,null,null,"2015-12-23"]
[null,null,null,null,null,null,null,null,null,null,null,null,null,null,null,null,null,null,null,null,null,null,null,null,"2016-01-01"]
[null,null,null,null,null,null,null,null,null,null,null,null,null,null,null,null,null,null,null,null,null,null,null,null,"2016-01-11"]
[null,null,null,null,null,null,null,null,null,null,null,null,null,null,null,null,null,null,null,null,null,null,null,null,"2016-02-11"]
[null,null,null,null,null,null,null,null,null,null,null,null,null,null,null,null,null,null,null,null,null,null,null,null,"2016-03-20"]
[null,null,null,null,null,null,null,null,null,null,null,null,null,null,null,null,null,null,null,null,null,null,null,null,"2016-03-21"]
[null,null,null,null,null,null,null,null,null,null,null,null,null,null,null,null,null,null,null,null,null,null,null,null,"2016-04-29"]
[null,null,null,null,null,null,null,null,null,null,null,null,null,null,null,null,null,null,null,null,null,null,null,null,"2016-05-03"]
[null,null,null,null,null,null,null,null,null,null,null,null,null,null,null,null,null,null,null,null,null,null,null,null,"2016-05-04"]
[null,null,null,null,null,null,null,null,null,null,null,null,null,null,null,null,null,null,null,null,null,null,null,null,"2016-05-05"]
[null,null,null,null,null,null,null,null,null,null,null,null,null,null,null,null,null,null,null,null,null,null,null,null,"2016-07-18"]
[null,null,null,null,null,null,null,null,null,null,null,null,null,null,null,null,null,null,null,null,null,null,null,null,"2016-09-19"]
[null,null,null,null,null,null,null,null,null,null,null,null,null,null,null,null,null,null,null,null,null,null,null,null,"2016-09-22"]
[null,null,null,null,null,null,null,null,null,null,null,null,null,null,null,null,null,null,null,null,null,null,null,null,"2016-10-10"]
[null,null,null,null,null,null,null,null,null,null,null,null,null,null,null,null,null,null,null,null,null,null,null,null,"2016-11-03"]
[null,null,null,null,null,null,null,null,null,null,null,null,null,null,null,null,null,null,null,null,null,null,null,null,"2016-11-23"]
[null,null,null,null,null,null,null,null,null,null,null,null,null,null,null,null,null,null,null,null,null,null,null,null,"2016-12-23"]